[Event "Titled Tuesday Blitz July 20 2021"]
[White "Mohammad Fahad, Rahman"]
[Black "Pacheco Lugo, Alejandro Jose"]
[WhiteFideId "10207791"]
[BlackFideId "3903745"]
[WhiteElo "2323"]
[BlackElo "2125"]
[Result "1-0"]
[Round "06"]
[TimeControl "180+1"]
[Date "2021.07.21"]
[WhiteClock "0:00:41"]
[BlackClock "0:00:02"]

1. e4 {[%clk 0:03:00]}  c5 {[%clk 0:02:59]} 2. Nc3 {[%clk 0:02:56]}  d6 {[%clk 0:02:59]} 3. d4 {[%clk 0:02:55]}  cxd4 {[%clk 0:02:56]} 4. Qxd4 {[%clk 0:02:55]}  Nc6 {[%clk 0:02:49]} 5. Qd2 {[%clk 0:02:52]}  g6 {[%clk 0:02:47]} 6. b3 {[%clk 0:02:49]}  Bh6 {[%clk 0:02:47]} 7. f4 {[%clk 0:02:48]}  Nf6 {[%clk 0:02:46]} 8. Bb2 {[%clk 0:02:45]}  Nh5 {[%clk 0:02:46]} 9. g3 {[%clk 0:02:44]}  e5 {[%clk 0:02:41]} 10. Nd5 {[%clk 0:02:42]}  O-O {[%clk 0:02:40]} 11. Be2 {[%clk 0:02:41]}  Nf6 {[%clk 0:02:32]} 12. Nxf6+ {[%clk 0:02:36]}  Qxf6 {[%clk 0:02:32]} 13. Nf3 {[%clk 0:02:37]}  Bg4 {[%clk 0:02:30]} 14. O-O-O {[%clk 0:02:36]}  Rad8 {[%clk 0:02:21]} 15. Kb1 {[%clk 0:02:32]}  Qe7 {[%clk 0:02:13]} 16. h3 {[%clk 0:02:07]}  Bxf3 {[%clk 0:01:55]} 17. Bxf3 {[%clk 0:02:08]}  exf4 {[%clk 0:01:55]} 18. gxf4 {[%clk 0:02:07]}  Qh4 {[%clk 0:01:54]} 19. Qc3 {[%clk 0:02:01]}  f6 {[%clk 0:01:54]} 20. f5 {[%clk 0:01:53]}  Bf4 {[%clk 0:01:53]} 21. fxg6 {[%clk 0:01:52]}  hxg6 {[%clk 0:01:53]} 22. Qc4+ {[%clk 0:01:44]}  Kh7 {[%clk 0:01:51]} 23. Qb5 {[%clk 0:01:44]}  Rd7 {[%clk 0:01:48]} 24. Bg4 {[%clk 0:01:41]}  Re7 {[%clk 0:01:47]} 25. Rd5 {[%clk 0:01:18]}  Rff7 {[%clk 0:01:36]} 26. Rhd1 {[%clk 0:01:18]}  Rxe4 {[%clk 0:01:33]} 27. Bc8 {[%clk 0:01:19]}  a6 {[%clk 0:01:02]} 28. Qd3 {[%clk 0:01:18]}  Re1 {[%clk 0:00:58]} 29. Bg4 {[%clk 0:01:16]}  Rxd1+ {[%clk 0:00:58]} 30. Bxd1 {[%clk 0:01:16]}  Be5 {[%clk 0:00:55]} 31. a3 {[%clk 0:01:12]}  Bxb2 {[%clk 0:00:54]} 32. Rh5+ {[%clk 0:01:12]}  Qxh5 {[%clk 0:00:40]} 33. Bxh5 {[%clk 0:01:13]}  f5 {[%clk 0:00:41]} 34. Bxg6+ {[%clk 0:01:00]}  Kxg6 {[%clk 0:00:40]} 35. Kxb2 {[%clk 0:01:01]}  Rf6 {[%clk 0:00:39]} 36. h4 {[%clk 0:01:02]}  Ne5 {[%clk 0:00:39]} 37. Qe3 {[%clk 0:01:02]}  f4 {[%clk 0:00:39]} 38. Qe4+ {[%clk 0:01:02]}  Kh5 {[%clk 0:00:34]} 39. Qxb7 {[%clk 0:01:00]}  Kxh4 {[%clk 0:00:35]} 40. Qxa6 {[%clk 0:01:01]}  f3 {[%clk 0:00:34]} 41. Qf1 {[%clk 0:00:57]}  f2 {[%clk 0:00:34]} 42. a4 {[%clk 0:00:57]}  Ng4 {[%clk 0:00:34]} 43. a5 {[%clk 0:00:52]}  Nh2 {[%clk 0:00:33]} 44. Qc4+ {[%clk 0:00:52]}  Kg3 {[%clk 0:00:31]} 45. Qc3+ {[%clk 0:00:51]}  Rf3 {[%clk 0:00:31]} 46. Qg7+ {[%clk 0:00:51]}  Ng4 {[%clk 0:00:31]} 47. a6 {[%clk 0:00:49]}  f1=Q {[%clk 0:00:26]} 48. a7 {[%clk 0:00:50]}  Rf8 {[%clk 0:00:26]} 49. Qb7 {[%clk 0:00:45]}  Qf3 {[%clk 0:00:22]} 50. Qe7 {[%clk 0:00:45]}  Ra8 {[%clk 0:00:20]} 51. Qxd6+ {[%clk 0:00:45]}  Qf4 {[%clk 0:00:14]} 52. Qd3+ {[%clk 0:00:45]}  Kh4 {[%clk 0:00:11]} 53. Qd7 {[%clk 0:00:45]}  Qe5+ {[%clk 0:00:07]} 54. Kb1 {[%clk 0:00:45]}  Qe1+ {[%clk 0:00:07]} 55. Kb2 {[%clk 0:00:46]}  Qe5+ {[%clk 0:00:07]} 56. Kb1 {[%clk 0:00:46]}  Qh8 {[%clk 0:00:06]} 57. b4 {[%clk 0:00:42]}  Qf6 {[%clk 0:00:02]} 58. Qb7 {[%clk 0:00:41]} 1-0


[Site "https://www.chess.com"]

[Event "Titled Tuesday Blitz July 20 2021"]
[White "Nathan, Nitish"]
[Black "Leve, Nitai"]
[WhiteFideId "30927870"]
[BlackFideId "2006898"]
[WhiteElo "2235"]
[BlackElo "2144"]
[Result "1-0"]
[Round "06"]
[TimeControl "180+1"]
[Date "2021.07.21"]
[WhiteClock "0:01:46"]
[BlackClock "0:00:22"]

1. d4 {[%clk 0:03:00]}  d5 {[%clk 0:02:56]} 2. Bf4 {[%clk 0:03:00]}  Nf6 {[%clk 0:02:56]} 3. e3 {[%clk 0:03:01]}  c5 {[%clk 0:02:56]} 4. Nd2 {[%clk 0:03:01]}  Nc6 {[%clk 0:02:56]} 5. c3 {[%clk 0:03:01]}  Bf5 {[%clk 0:02:56]} 6. Qb3 {[%clk 0:03:01]}  Qb6 {[%clk 0:02:57]} 7. dxc5 {[%clk 0:03:00]}  Qxb3 {[%clk 0:02:55]} 8. axb3 {[%clk 0:03:00]}  e5 {[%clk 0:02:55]} 9. Bg3 {[%clk 0:03:00]}  Bxc5 {[%clk 0:02:55]} 10. b4 {[%clk 0:03:01]}  Bd6 {[%clk 0:02:55]} 11. Ngf3 {[%clk 0:03:01]}  Nd7 {[%clk 0:02:52]} 12. b5 {[%clk 0:02:59]}  Ne7 {[%clk 0:02:51]} 13. Be2 {[%clk 0:02:58]}  f6 {[%clk 0:02:51]} 14. O-O {[%clk 0:02:55]}  O-O {[%clk 0:02:50]} 15. Nd4 {[%clk 0:02:55]}  Bg6 {[%clk 0:02:40]} 16. Ra2 {[%clk 0:02:34]}  Nc5 {[%clk 0:02:29]} 17. Rfa1 {[%clk 0:02:29]}  Bb8 {[%clk 0:02:25]} 18. N4b3 {[%clk 0:02:27]}  Nxb3 {[%clk 0:02:07]} 19. Nxb3 {[%clk 0:02:26]}  Nf5 {[%clk 0:02:08]} 20. Nc5 {[%clk 0:02:22]}  Rf7 {[%clk 0:01:57]} 21. c4 {[%clk 0:02:21]}  Rc7 {[%clk 0:01:44]} 22. Ne6 {[%clk 0:02:20]}  Nxg3 {[%clk 0:01:19]} 23. hxg3 {[%clk 0:02:19]}  Rc8 {[%clk 0:01:08]} 24. cxd5 {[%clk 0:02:19]}  Be4 {[%clk 0:01:07]} 25. Bf3 {[%clk 0:02:15]}  Bxf3 {[%clk 0:01:02]} 26. gxf3 {[%clk 0:02:15]}  Kf7 {[%clk 0:01:03]} 27. e4 {[%clk 0:02:14]}  g6 {[%clk 0:00:55]} 28. b4 {[%clk 0:02:03]}  Ke7 {[%clk 0:00:53]} 29. b6 {[%clk 0:02:03]}  a6 {[%clk 0:00:43]} 30. b5 {[%clk 0:02:02]}  a5 {[%clk 0:00:42]} 31. Rxa5 {[%clk 0:02:02]}  Rxa5 {[%clk 0:00:42]} 32. Rxa5 {[%clk 0:02:02]}  Kd6 {[%clk 0:00:28]} 33. Ra8 {[%clk 0:01:58]}  f5 {[%clk 0:00:27]} 34. Kg2 {[%clk 0:01:56]}  h5 {[%clk 0:00:22]} 35. Ra7 {[%clk 0:01:46]} 1-0


[Site "https://www.chess.com"]

[Event "Titled Tuesday Blitz July 20 2021"]
[White "Nefedov, Sergey"]
[Black "Petriashvili, Nikoloz"]
[WhiteFideId "24113417"]
[BlackFideId "13611216"]
[WhiteElo "2385"]
[BlackElo "2430"]
[Result "1-0"]
[Round "06"]
[TimeControl "180+1"]
[Date "2021.07.20"]
[WhiteClock "0:00:27"]
[BlackClock "0:01:23"]

1. d4 {[%clk 0:03:00]}  Nf6 {[%clk 0:02:59]} 2. Nf3 {[%clk 0:03:01]}  e6 {[%clk 0:02:59]} 3. c4 {[%clk 0:03:00]}  d5 {[%clk 0:03:00]} 4. Nc3 {[%clk 0:03:00]}  Be7 {[%clk 0:03:00]} 5. Bg5 {[%clk 0:03:00]}  h6 {[%clk 0:03:00]} 6. Bh4 {[%clk 0:02:59]}  Ne4 {[%clk 0:03:00]} 7. Bxe7 {[%clk 0:02:58]}  Qxe7 {[%clk 0:03:01]} 8. e3 {[%clk 0:02:58]}  Nxc3 {[%clk 0:03:00]} 9. bxc3 {[%clk 0:02:57]}  c6 {[%clk 0:03:00]} 10. Bd3 {[%clk 0:02:55]}  O-O {[%clk 0:03:00]} 11. O-O {[%clk 0:02:54]}  Nd7 {[%clk 0:03:01]} 12. Qb3 {[%clk 0:02:52]}  b6 {[%clk 0:02:59]} 13. Rfe1 {[%clk 0:02:43]}  Ba6 {[%clk 0:02:58]} 14. Rad1 {[%clk 0:02:42]}  Rac8 {[%clk 0:02:52]} 15. cxd5 {[%clk 0:02:35]}  Bxd3 {[%clk 0:02:53]} 16. dxe6 {[%clk 0:02:30]}  Be4 {[%clk 0:02:35]} 17. exd7 {[%clk 0:02:29]}  Qxd7 {[%clk 0:02:36]} 18. Ne5 {[%clk 0:02:26]}  Qd6 {[%clk 0:02:34]} 19. f3 {[%clk 0:02:25]}  Bd5 {[%clk 0:02:34]} 20. c4 {[%clk 0:02:25]}  Be6 {[%clk 0:02:34]} 21. Qa4 {[%clk 0:01:57]}  Rc7 {[%clk 0:02:25]} 22. Nd3 {[%clk 0:01:51]}  Rd8 {[%clk 0:02:21]} 23. Nf2 {[%clk 0:01:40]}  b5 {[%clk 0:02:12]} 24. cxb5 {[%clk 0:01:31]}  cxb5 {[%clk 0:02:13]} 25. Qxb5 {[%clk 0:01:28]}  Bxa2 {[%clk 0:02:13]} 26. Ne4 {[%clk 0:01:28]}  Qb6 {[%clk 0:02:09]} 27. Qxb6 {[%clk 0:01:21]}  axb6 {[%clk 0:02:10]} 28. Rd2 {[%clk 0:01:21]}  Bc4 {[%clk 0:02:04]} 29. Rb2 {[%clk 0:01:17]}  b5 {[%clk 0:02:03]} 30. Kf2 {[%clk 0:01:09]}  Ra7 {[%clk 0:02:03]} 31. Nc3 {[%clk 0:01:05]}  f5 {[%clk 0:02:02]} 32. Rc1 {[%clk 0:00:58]}  f4 {[%clk 0:01:53]} 33. exf4 {[%clk 0:00:40]}  Rb7 {[%clk 0:01:49]} 34. Rd1 {[%clk 0:00:35]}  b4 {[%clk 0:01:46]} 35. Ne4 {[%clk 0:00:35]}  Bd5 {[%clk 0:01:38]} 36. Nc5 {[%clk 0:00:33]}  Rb5 {[%clk 0:01:37]} 37. Rdb1 {[%clk 0:00:32]}  Rdb8 {[%clk 0:01:37]} 38. Na6 {[%clk 0:00:30]}  Ra8 {[%clk 0:01:36]} 39. Nc7 {[%clk 0:00:30]}  Rba5 {[%clk 0:01:28]} 40. Nxa8 {[%clk 0:00:29]}  Rxa8 {[%clk 0:01:29]} 41. Rxb4 {[%clk 0:00:30]}  Ra2+ {[%clk 0:01:29]} 42. R1b2 {[%clk 0:00:30]}  Ra1 {[%clk 0:01:29]} 43. Rb5 {[%clk 0:00:30]}  Bc4 {[%clk 0:01:29]} 44. Rc5 {[%clk 0:00:30]}  Rf1+ {[%clk 0:01:28]} 45. Kg3 {[%clk 0:00:29]}  Bd3 {[%clk 0:01:28]} 46. d5 {[%clk 0:00:29]}  Bg6 {[%clk 0:01:25]} 47. Rd2 {[%clk 0:00:27]}  Rd1 {[%clk 0:01:23]} 48. Rxd1 {[%clk 0:00:27]} 1-0


[Site "https://www.chess.com"]

[Event "Titled Tuesday Blitz July 20 2021"]
[White "Obolentseva, Alexandra"]
[Black "Madaminov, Mukhiddin"]
[WhiteFideId "24153648"]
[BlackFideId "14210703"]
[WhiteElo "2113"]
[BlackElo "1747"]
[Result "0-1"]
[Round "06"]
[TimeControl "180+1"]
[Date "2021.07.21"]
[WhiteClock "0:02:31"]
[BlackClock "0:02:45"]

1. d4 {[%clk 0:03:00]}  Nf6 {[%clk 0:03:00]} 2. c4 {[%clk 0:02:58]}  e6 {[%clk 0:03:00]} 3. Nc3 {[%clk 0:02:56]}  Bb4 {[%clk 0:03:00]} 4. Qc2 {[%clk 0:02:55]}  O-O {[%clk 0:03:00]} 5. Nf3 {[%clk 0:02:54]}  d5 {[%clk 0:02:59]} 6. Bf4 {[%clk 0:02:52]}  c5 {[%clk 0:02:55]} 7. a3 {[%clk 0:02:41]}  Bxc3+ {[%clk 0:02:55]} 8. Qxc3 {[%clk 0:02:42]}  Ne4 {[%clk 0:02:54]} 9. Qd3 {[%clk 0:02:40]}  Nc6 {[%clk 0:02:49]} 10. cxd5 {[%clk 0:02:35]}  exd5 {[%clk 0:02:48]} 11. dxc5 {[%clk 0:02:34]}  Bf5 {[%clk 0:02:45]} 12. Qd2 {[%clk 0:02:31]}  Nxd2 {[%clk 0:02:45]} 0-1


[Site "https://www.chess.com"]

[Event "Titled Tuesday Blitz July 20 2021"]
[White "Perez Gormaz, Matias"]
[Black "Ahmadzada, Ahmad"]
[WhiteFideId "3406342"]
[BlackFideId "13413007"]
[WhiteElo "2414"]
[BlackElo "2226"]
[Result "1/2-1/2"]
[Round "06"]
[TimeControl "180+1"]
[Date "2021.07.20"]
[WhiteClock "0:00:03"]
[BlackClock "0:00:04"]

1. d4 {[%clk 0:03:00]}  Nf6 {[%clk 0:02:59]} 2. c4 {[%clk 0:03:00]}  Nc6 {[%clk 0:03:00]} 3. Nf3 {[%clk 0:02:56]}  e6 {[%clk 0:03:00]} 4. e3 {[%clk 0:02:55]}  Bb4+ {[%clk 0:02:59]} 5. Nc3 {[%clk 0:02:54]}  d6 {[%clk 0:02:54]} 6. Bd3 {[%clk 0:02:53]}  O-O {[%clk 0:02:53]} 7. O-O {[%clk 0:02:53]}  Bxc3 {[%clk 0:02:52]} 8. bxc3 {[%clk 0:02:53]}  e5 {[%clk 0:02:52]} 9. Nd2 {[%clk 0:02:54]}  Ne7 {[%clk 0:02:51]} 10. f4 {[%clk 0:02:51]}  Re8 {[%clk 0:02:40]} 11. fxe5 {[%clk 0:02:47]}  dxe5 {[%clk 0:02:39]} 12. Rxf6 {[%clk 0:02:38]}  gxf6 {[%clk 0:02:35]} 13. Qh5 {[%clk 0:02:37]}  Ng6 {[%clk 0:02:34]} 14. Ne4 {[%clk 0:02:30]}  Kg7 {[%clk 0:02:24]} 15. Bd2 {[%clk 0:02:21]}  f5 {[%clk 0:02:18]} 16. Ng3 {[%clk 0:02:11]}  Qh4 {[%clk 0:01:58]} 17. Nxf5+ {[%clk 0:02:03]}  Bxf5 {[%clk 0:01:57]} 18. Qxf5 {[%clk 0:02:04]}  Re6 {[%clk 0:01:47]} 19. g3 {[%clk 0:01:52]}  Qe7 {[%clk 0:01:39]} 20. Rf1 {[%clk 0:01:43]}  Rf6 {[%clk 0:01:37]} 21. Qe4 {[%clk 0:01:32]}  exd4 {[%clk 0:01:28]} 22. Qxe7 {[%clk 0:01:26]}  Rxf1+ {[%clk 0:01:24]} 23. Bxf1 {[%clk 0:01:27]}  Nxe7 {[%clk 0:01:24]} 24. cxd4 {[%clk 0:01:28]}  b6 {[%clk 0:01:14]} 25. Kf2 {[%clk 0:01:27]}  c5 {[%clk 0:01:13]} 26. d5 {[%clk 0:01:23]}  f5 {[%clk 0:01:13]} 27. Bc3+ {[%clk 0:01:21]}  Kf7 {[%clk 0:01:13]} 28. Bd3 {[%clk 0:01:20]}  Rd8 {[%clk 0:01:12]} 29. e4 {[%clk 0:01:20]}  fxe4 {[%clk 0:01:08]} 30. Bxe4 {[%clk 0:01:20]}  h6 {[%clk 0:00:58]} 31. a4 {[%clk 0:01:20]}  Nc8 {[%clk 0:00:58]} 32. g4 {[%clk 0:01:14]}  Nd6 {[%clk 0:00:58]} 33. Bd3 {[%clk 0:01:14]}  Re8 {[%clk 0:00:58]} 34. Kf3 {[%clk 0:01:12]}  Ke7 {[%clk 0:00:56]} 35. h4 {[%clk 0:01:11]}  Rf8+ {[%clk 0:00:56]} 36. Ke3 {[%clk 0:01:09]}  h5 {[%clk 0:00:51]} 37. gxh5 {[%clk 0:01:02]}  Nf5+ {[%clk 0:00:51]} 38. Kd2 {[%clk 0:00:29]}  Nxh4 {[%clk 0:00:50]} 39. h6 {[%clk 0:00:30]}  Nf3+ {[%clk 0:00:43]} 40. Ke3 {[%clk 0:00:27]}  Nd4 {[%clk 0:00:43]} 41. Bxd4 {[%clk 0:00:24]}  cxd4+ {[%clk 0:00:43]} 42. Kxd4 {[%clk 0:00:25]}  Kd6 {[%clk 0:00:40]} 43. h7 {[%clk 0:00:25]}  Rf4+ {[%clk 0:00:36]} 44. Ke3 {[%clk 0:00:13]}  Rh4 {[%clk 0:00:37]} 45. Kf3 {[%clk 0:00:12]}  Ke5 {[%clk 0:00:33]} 46. Kg3 {[%clk 0:00:07]}  Rh1 {[%clk 0:00:29]} 47. Kf3 {[%clk 0:00:07]}  Kf6 {[%clk 0:00:27]} 48. Ke3 {[%clk 0:00:06]}  Rh4 {[%clk 0:00:24]} 49. Kd2 {[%clk 0:00:05]}  Ke5 {[%clk 0:00:18]} 50. Kc3 {[%clk 0:00:06]}  a5 {[%clk 0:00:17]} 51. Kd2 {[%clk 0:00:04]}  Rh2+ {[%clk 0:00:10]} 52. Kc3 {[%clk 0:00:04]}  Rh3 {[%clk 0:00:08]} 53. Kd2 {[%clk 0:00:04]}  Rh2+ {[%clk 0:00:05]} 54. Kc3 {[%clk 0:00:04]}  Rh6 {[%clk 0:00:04]} 55. Bc2 {[%clk 0:00:03]}  Rh4 {[%clk 0:00:04]} 56. Bd3 {[%clk 0:00:03]}  Kd6 {[%clk 0:00:04]} 57. Bc2 {[%clk 0:00:04]}  Kc5 {[%clk 0:00:04]} 58. Bd3 {[%clk 0:00:04]}  Rh3 {[%clk 0:00:05]} 59. Kd2 {[%clk 0:00:04]}  Kd6 {[%clk 0:00:04]} 60. Kc3 {[%clk 0:00:05]}  Ke7 {[%clk 0:00:05]} 61. Kd2 {[%clk 0:00:04]}  Kf6 {[%clk 0:00:05]} 62. Kc3 {[%clk 0:00:05]}  Rh2 {[%clk 0:00:05]} 63. Kd4 {[%clk 0:00:05]}  Rh4+ {[%clk 0:00:05]} 64. Kc3 {[%clk 0:00:04]}  Ke5 {[%clk 0:00:05]} 65. Bc2 {[%clk 0:00:05]}  Rh3+ {[%clk 0:00:05]} 66. Bd3 {[%clk 0:00:05]}  Kd6 {[%clk 0:00:04]} 67. Kd2 {[%clk 0:00:04]}  Ke5 {[%clk 0:00:04]} 68. Kc3 {[%clk 0:00:03]} 1/2-1/2


[Site "https://www.chess.com"]

[Event "Titled Tuesday Blitz July 20 2021"]
[White "Pert, Richard G"]
[Black "Plotnikov, Pavel"]
[WhiteFideId "404748"]
[BlackFideId "4170342"]
[WhiteElo "2441"]
[BlackElo "2298"]
[Result "1/2-1/2"]
[Round "06"]
[TimeControl "180+1"]
[Date "2021.07.21"]
[WhiteClock "0:00:07"]
[BlackClock "0:00:04"]

1. e4 {[%clk 0:03:00]}  c5 {[%clk 0:02:59]} 2. Nf3 {[%clk 0:03:00]}  e6 {[%clk 0:02:59]} 3. Nc3 {[%clk 0:02:56]}  Nc6 {[%clk 0:02:49]} 4. d4 {[%clk 0:02:53]}  cxd4 {[%clk 0:02:49]} 5. Nxd4 {[%clk 0:02:54]}  Nf6 {[%clk 0:02:49]} 6. Nxc6 {[%clk 0:02:49]}  bxc6 {[%clk 0:02:49]} 7. e5 {[%clk 0:02:48]}  Nd5 {[%clk 0:02:49]} 8. Ne4 {[%clk 0:02:48]}  Qc7 {[%clk 0:02:49]} 9. f4 {[%clk 0:02:44]}  Rb8 {[%clk 0:02:48]} 10. c4 {[%clk 0:02:42]}  Bb4+ {[%clk 0:02:47]} 11. Ke2 {[%clk 0:02:40]}  Ba6 {[%clk 0:02:47]} 12. Kf3 {[%clk 0:02:40]}  Bb7 {[%clk 0:02:39]} 13. c5 {[%clk 0:02:26]}  f5 {[%clk 0:02:29]} 14. exf6 {[%clk 0:02:14]}  Nxf6 {[%clk 0:02:24]} 15. a3 {[%clk 0:02:13]}  Nxe4 {[%clk 0:02:23]} 16. axb4 {[%clk 0:02:12]}  Nf6 {[%clk 0:02:14]} 17. Bd3 {[%clk 0:02:07]}  Nd5 {[%clk 0:02:11]} 18. Re1 {[%clk 0:01:38]}  O-O {[%clk 0:02:07]} 19. Re4 {[%clk 0:01:33]}  Nf6 {[%clk 0:02:03]} 20. Qc2 {[%clk 0:01:20]}  Nxe4 {[%clk 0:02:00]} 21. Bxe4 {[%clk 0:01:20]}  h6 {[%clk 0:01:45]} 22. Be3 {[%clk 0:01:18]}  e5 {[%clk 0:01:45]} 23. f5 {[%clk 0:01:16]}  Rf6 {[%clk 0:01:36]} 24. g4 {[%clk 0:01:15]}  Rbf8 {[%clk 0:01:33]} 25. Rxa7 {[%clk 0:01:12]}  Qb8 {[%clk 0:01:32]} 26. Ra1 {[%clk 0:01:04]}  Bc8 {[%clk 0:01:30]} 27. Qc4+ {[%clk 0:00:59]}  Kh8 {[%clk 0:01:25]} 28. Rd1 {[%clk 0:00:54]}  g6 {[%clk 0:01:24]} 29. Ke2 {[%clk 0:00:46]}  gxf5 {[%clk 0:01:23]} 30. gxf5 {[%clk 0:00:45]}  d5 {[%clk 0:01:07]} 31. cxd6 {[%clk 0:00:44]}  Rxd6 {[%clk 0:00:59]} 32. Rxd6 {[%clk 0:00:36]}  Qxd6 {[%clk 0:00:59]} 33. Bc5 {[%clk 0:00:37]}  Qf6 {[%clk 0:00:42]} 34. Bxf8 {[%clk 0:00:36]}  Qxf8 {[%clk 0:00:42]} 35. Qxc6 {[%clk 0:00:34]}  Bxf5 {[%clk 0:00:42]} 36. Bxf5 {[%clk 0:00:31]}  Qxf5 {[%clk 0:00:42]} 37. Qxh6+ {[%clk 0:00:32]}  Kg8 {[%clk 0:00:41]} 38. Qe3 {[%clk 0:00:28]}  Qc2+ {[%clk 0:00:39]} 39. Qd2 {[%clk 0:00:25]}  Qc4+ {[%clk 0:00:39]} 40. Kf3 {[%clk 0:00:23]}  Qc6+ {[%clk 0:00:27]} 41. Kg4 {[%clk 0:00:19]}  Qe4+ {[%clk 0:00:26]} 42. Kh5 {[%clk 0:00:17]}  Qf3+ {[%clk 0:00:24]} 43. Kh4 {[%clk 0:00:15]}  Qe4+ {[%clk 0:00:23]} 44. Kg3 {[%clk 0:00:15]}  Qg6+ {[%clk 0:00:22]} 45. Kf3 {[%clk 0:00:15]}  Qf5+ {[%clk 0:00:22]} 46. Kg2 {[%clk 0:00:14]}  Qg4+ {[%clk 0:00:20]} 47. Kf2 {[%clk 0:00:14]}  Qf5+ {[%clk 0:00:18]} 48. Kg3 {[%clk 0:00:14]}  Qg6+ {[%clk 0:00:17]} 49. Kf3 {[%clk 0:00:14]}  Qf5+ {[%clk 0:00:17]} 50. Ke2 {[%clk 0:00:14]}  Qg4+ {[%clk 0:00:17]} 51. Kd3 {[%clk 0:00:13]}  Qd4+ {[%clk 0:00:15]} 52. Kc2 {[%clk 0:00:13]}  Qe4+ {[%clk 0:00:15]} 53. Qd3 {[%clk 0:00:13]}  Qg2+ {[%clk 0:00:15]} 54. Qd2 {[%clk 0:00:13]}  Qe4+ {[%clk 0:00:15]} 55. Kb3 {[%clk 0:00:13]}  Qf3+ {[%clk 0:00:14]} 56. Qc3 {[%clk 0:00:13]}  Qd1+ {[%clk 0:00:14]} 57. Qc2 {[%clk 0:00:12]}  Qf3+ {[%clk 0:00:14]} 58. Qc3 {[%clk 0:00:13]}  Qd1+ {[%clk 0:00:14]} 59. Kc4 {[%clk 0:00:12]}  Qe2+ {[%clk 0:00:12]} 60. Kd5 {[%clk 0:00:12]}  Qxh2 {[%clk 0:00:10]} 61. Qxe5 {[%clk 0:00:12]}  Qd2+ {[%clk 0:00:09]} 62. Qd4 {[%clk 0:00:12]}  Qg5+ {[%clk 0:00:09]} 63. Kc4 {[%clk 0:00:12]}  Qc1+ {[%clk 0:00:09]} 64. Qc3 {[%clk 0:00:11]}  Qf4+ {[%clk 0:00:08]} 65. Kb3 {[%clk 0:00:11]}  Kf8 {[%clk 0:00:06]} 66. b5 {[%clk 0:00:10]}  Ke8 {[%clk 0:00:04]} 67. b6 {[%clk 0:00:07]}  Qe4 {[%clk 0:00:04]} 68. Qc8+ {[%clk 0:00:06]}  Ke7 {[%clk 0:00:04]} 69. Qc7+ {[%clk 0:00:06]}  Ke8 {[%clk 0:00:04]} 70. Qc8+ {[%clk 0:00:07]}  Ke7 {[%clk 0:00:04]} 71. b7 {[%clk 0:00:07]}  Qd5+ {[%clk 0:00:03]} 72. Kc3 {[%clk 0:00:07]}  Qe5+ {[%clk 0:00:03]} 73. Kc4 {[%clk 0:00:07]}  Qe4+ {[%clk 0:00:02]} 74. Kb3 {[%clk 0:00:07]}  Qd5+ {[%clk 0:00:02]} 75. Kc2 {[%clk 0:00:07]}  Qe4+ {[%clk 0:00:03]} 76. Kc1 {[%clk 0:00:07]}  Qe1+ {[%clk 0:00:03]} 77. Kc2 {[%clk 0:00:07]}  Qe4+ {[%clk 0:00:04]} 78. Kb3 {[%clk 0:00:07]} 1/2-1/2


[Site "https://www.chess.com"]

[Event "Titled Tuesday Blitz July 20 2021"]
[White "Pinheiro, Iung Alicio de O."]
[Black "Kobalia, Mikhail"]
[WhiteFideId "2104350"]
[BlackFideId "4119150"]
[WhiteElo "2614"]
[BlackElo "2569"]
[Result "0-1"]
[Round "06"]
[TimeControl "180+1"]
[Date "2021.07.20"]
[WhiteClock "0:00:20"]
[BlackClock "0:00:13"]

1. e4 {[%clk 0:02:59]}  c6 {[%clk 0:02:58]} 2. d4 {[%clk 0:02:58]}  d5 {[%clk 0:02:58]} 3. e5 {[%clk 0:02:58]}  Bf5 {[%clk 0:02:58]} 4. Ne2 {[%clk 0:02:57]}  h6 {[%clk 0:02:56]} 5. Ng3 {[%clk 0:02:55]}  Bd7 {[%clk 0:02:56]} 6. Be3 {[%clk 0:02:52]}  e6 {[%clk 0:02:55]} 7. Nd2 {[%clk 0:02:48]}  a5 {[%clk 0:02:53]} 8. c3 {[%clk 0:02:41]}  a4 {[%clk 0:02:52]} 9. f4 {[%clk 0:02:40]}  Qb6 {[%clk 0:02:51]} 10. Rb1 {[%clk 0:02:39]}  c5 {[%clk 0:02:51]} 11. Nf3 {[%clk 0:02:32]}  Nc6 {[%clk 0:02:51]} 12. Bd3 {[%clk 0:02:26]}  cxd4 {[%clk 0:02:51]} 13. Nxd4 {[%clk 0:02:25]}  Bc5 {[%clk 0:02:49]} 14. Nge2 {[%clk 0:02:24]}  Nge7 {[%clk 0:02:46]} 15. O-O {[%clk 0:02:24]}  O-O {[%clk 0:02:44]} 16. Kh1 {[%clk 0:02:24]}  f5 {[%clk 0:02:43]} 17. b4 {[%clk 0:02:17]}  axb3 {[%clk 0:02:31]} 18. axb3 {[%clk 0:02:17]}  Nxd4 {[%clk 0:02:29]} 19. cxd4 {[%clk 0:02:02]}  Bb4 {[%clk 0:02:28]} 20. Rg1 {[%clk 0:02:01]}  Bb5 {[%clk 0:02:27]} 21. g4 {[%clk 0:01:54]}  Ra2 {[%clk 0:02:26]} 22. Ng3 {[%clk 0:01:48]}  Bd2 {[%clk 0:02:19]} 23. Qe2 {[%clk 0:01:26]}  Bxd3 {[%clk 0:01:43]} 24. Qxd3 {[%clk 0:01:26]}  Bxe3 {[%clk 0:01:44]} 25. Qxe3 {[%clk 0:01:26]}  Rc8 {[%clk 0:01:43]} 26. Rbc1 {[%clk 0:01:05]}  Rxc1 {[%clk 0:01:40]} 27. Rxc1 {[%clk 0:01:06]}  fxg4 {[%clk 0:01:39]} 28. Qd3 {[%clk 0:00:58]}  Qa5 {[%clk 0:01:27]} 29. f5 {[%clk 0:00:51]}  Qa3 {[%clk 0:01:03]} 30. Rc2 {[%clk 0:00:35]}  Ra1+ {[%clk 0:00:53]} 31. Kg2 {[%clk 0:00:35]}  Qa5 {[%clk 0:00:51]} 32. Re2 {[%clk 0:00:30]}  Qa6 {[%clk 0:00:44]} 33. Qxa6 {[%clk 0:00:28]}  bxa6 {[%clk 0:00:44]} 34. f6 {[%clk 0:00:27]}  Nc6 {[%clk 0:00:42]} 35. fxg7 {[%clk 0:00:26]}  Nxd4 {[%clk 0:00:40]} 36. Rf2 {[%clk 0:00:26]}  Nf3 {[%clk 0:00:36]} 37. Ne2 {[%clk 0:00:22]}  Kxg7 {[%clk 0:00:32]} 38. h3 {[%clk 0:00:23]}  Nxe5 {[%clk 0:00:31]} 39. Nd4 {[%clk 0:00:21]}  Nd3 {[%clk 0:00:22]} 40. Nxe6+ {[%clk 0:00:20]}  Kg6 {[%clk 0:00:18]} 41. Rf8 {[%clk 0:00:20]}  gxh3+ {[%clk 0:00:15]} 42. Kxh3 {[%clk 0:00:21]}  Re1 {[%clk 0:00:15]} 43. Nd4 {[%clk 0:00:20]}  Re4 {[%clk 0:00:14]} 44. Nf3 {[%clk 0:00:20]}  Rf4 {[%clk 0:00:14]} 45. Kg3 {[%clk 0:00:20]}  Rxf8 {[%clk 0:00:13]} 0-1


[Site "https://www.chess.com"]